[Event "46th OKU-A 2019"]
[Site "Utrecht"]
[Date "2019.06.01"]
[Round "2.5"]
[White "Meng, Roger"]
[Black "Vroombout, Enrico"]
[Result "1-0"]
[ECO "E61"]
[WhiteElo "2443"]
[BlackElo "2137"]
[Annotator "ChessBase"]
[PlyCount "89"]
[EventDate "2019.05.31"]
[EventType "swiss"]
[EventCountry "NED"]
[SourceTitle "playchess.com"]
[Source "ChessBase"]
[SourceQuality "1"]
[TimeControl "6600+10"]

1. d4 {[%emt 0:00:00]} Nf6 {[%emt 0:00:00]} 2. Nf3 {[%emt 0:00:04]} g6 {[%emt 0:00:00]} 3. c4 {[%emt 0:00:04]} Bg7 {[%emt 0:00:02]} 4. Nc3 {[%emt 0:00:02]} O-O {[%emt 0:00:05]} 5. Bf4 {[%emt 0:00:43]} d6 {[%emt 0:04:17]} 6. e3 {[%emt 0:00:41]} Bg4 {[%emt 0:09:29]} 7. Be2 {[%emt 0:05:52]} Nbd7 {[%emt 0:08:58]} 8. O-O {[%emt 0:01:35]} c6 {[%emt 0:00:18]} 9. h3 {[%emt 0:00:32]} Bxf3 {[%emt 0:00:05]} 10. Bxf3 {[%emt 0:00:04]} e5 {[%emt 0:00:40]} 11. Bh2 {[%emt 0:00:36]} Re8 {[%emt 0:05:46]} 12. b4 {[%emt 0:00:42]} a6 {[%emt 0:09:56]} 13. a4 {[%emt 0:07:12]} exd4 {[%emt 0:24:20]} 14. exd4 {[%emt 0:00:21]} Nf8 {[%emt 0:00:08]} 15. b5 {[%emt 0:07:54]} d5 {[%emt 0:03:39]} 16. bxc6 {[%emt 0:20:48]} bxc6 {[%emt 0:00:04]} 17. cxd5 {[%emt 0:05:16]} cxd5 {[%emt 0:00:06]} 18. Be5 {[%emt 0:03:13]} Rc8 {[%emt 0:04:51]} 19. Qb3 {[%emt 0:09:49]} Ne4 {[%emt 0:03:40]} 20. Bxe4 {[%emt 0:08:51]} dxe4 {[%emt 0:00:15]} 21. Rad1 {[%emt 0:03:28]} Bxe5 {[%emt 0:15:37]} 22. dxe5 {[%emt 0:00:01]} Qh4 {[%emt 0:00:06]} 23. Rd5 {[%emt 0:00:22]} Ne6 {[%emt 0:01:09]} 24. Re1 {[%emt 0:08:30]} Ng5 {[%emt 0:00:25]} 25. Re3 {[%emt 0:00:13]} Rb8 {[%emt 0:05:48]} 26. Qa2 {[%emt 0:09:31]} Rb4 {[%emt 0:01:37]} 27. Rg3 {[%emt 0:01:25]} Reb8 {[%emt 0:06:03]} 28. Rg4 {[%emt 0:01:44]} Qh6 {[%emt 0:02:31]} 29. Qd2 {[%emt 0:02:37]} Nxh3+ {[%emt 0:00:29]} 30. gxh3 {[%emt 0:00:01]} Qxh3 {[%emt 0:00:07]} 31. Rg3 {[%emt 0:02:43]} Rb1+ {[%emt 0:00:07]} 32. Nd1 {[%emt 0:00:03]} Qe6 {[%emt 0:02:51]} 33. Kg2 {[%emt 0:00:07]} h5 {[%emt 0:00:15]} 34. Rd8+ {[%emt 0:02:13]} Rxd8 {[%emt 0:00:05]} 35. Qxd8+ {[%emt 0:00:04]} Kg7 {[%emt 0:00:00]} 36. Nc3 {[%emt 0:02:22]} Rb4 {[%emt 0:01:29]} 37. Qf6+ {[%emt 0:02:53]} Qxf6 {[%emt 0:00:01]} 38. exf6+ {[%emt 0:00:01]} Kh6 {[%emt 0:00:07]} 39. Re3 {[%emt 0:00:08]} Rc4 {[%emt 0:00:32]} 40. Nxe4 {[%emt 0:00:17]} Rxa4 {[%emt 0:00:06]} 41. Nd6 {[%emt 0:00:01]} Rf4 {[%emt 0:00:26]} 42. Nxf7+ {[%emt 0:00:08]} Kh7 {[%emt 0:00:04]} 43. Ng5+ {[%emt 0:00:03]} Kh6 {[%emt 0:00:08]} 44. Rf3 {[%emt 0:01:07]} Rxf3 {[%emt 0:00:20]} 45. Kxf3 {[%emt 0:00:03]} 1-0

[Event "46th OKU-A 2019"]
[Site "Utrecht"]
[Date "2019.06.01"]
[Round "2.6"]
[White "Van Dael, Siem"]
[Black "Miezis, Normunds"]
[Result "1/2-1/2"]
[ECO "B41"]
[WhiteElo "2218"]
[BlackElo "2456"]
[Annotator "ChessBase"]
[PlyCount "244"]
[EventDate "2019.05.31"]
[EventType "swiss"]
[EventCountry "NED"]
[SourceTitle "playchess.com"]
[Source "ChessBase"]
[SourceQuality "1"]
[TimeControl "6600+10"]

1. e4 {[%emt 0:00:00]} c5 {[%emt 0:00:07]} 2. Nf3 {[%emt 0:00:12]} e6 {[%emt 0:00:10]} 3. d4 {[%emt 0:00:04]} cxd4 {[%emt 0:00:12]} 4. Nxd4 {[%emt 0:00:04]} a6 {[%emt 0:00:11]} 5. c4 {[%emt 0:00:05]} Nf6 {[%emt 0:01:32]} 6. Nc3 {[%emt 0:00:06]} Bb4 {[%emt 0:00:48]} 7. Nc2 {[%emt 0:00:05]} Bxc3+ {[%emt 0:02:17]} 8. bxc3 {[%emt 0:00:07]} Qa5 {[%emt 0:02:52]} 9. Qd4 {[%emt 0:00:23]} Nc6 {[%emt 0:01:14]} 10. Qe3 {[%emt 0:00:06]} O-O {[%emt 0:03:11]} 11. Ba3 {[%emt 0:02:44]} Rd8 {[%emt 0:00:26]} 12. c5 {[%emt 0:05:55]} b6 {[%emt 0:01:58]} 13. f3 {[%emt 0:25:31]} bxc5 {[%emt 0:04:40]} 14. Bxc5 {[%emt 0:00:13]} Qa4 {[%emt 0:05:11]} 15. Bd3 {[%emt 0:01:17]} d6 {[%emt 0:02:54]} 16. Bb6 {[%emt 0:03:19]} Rd7 {[%emt 0:00:23]} 17. Nd4 {[%emt 0:03:36]} Nb4 {[%emt 0:13:58]} 18. cxb4 {[%emt 0:16:39]} Qxb4+ {[%emt 0:05:54]} 19. Kf2 {[%emt 0:03:35]} Qxb6 {[%emt 0:00:20]} 20. Rhb1 {[%emt 0:00:12]} Qa7 {[%emt 0:01:14]} 21. Nc6 {[%emt 0:02:47]} Qxe3+ {[%emt 0:01:15]} 22. Kxe3 {[%emt 0:00:04]} g5 {[%emt 0:04:48]} 23. Rb8 {[%emt 0:06:38]} Rxb8 {[%emt 0:01:48]} 24. Nxb8 {[%emt 0:00:04]} Rb7 {[%emt 0:01:44]} 25. Nxa6 {[%emt 0:02:14]} Rb2 {[%emt 0:02:19]} 26. a4 {[%emt 0:01:38]} Nd7 {[%emt 0:04:16]} 27. Rc1 {[%emt 0:03:44]} Bb7 {[%emt 0:02:45]} 28. Rc7 {[%emt 0:05:47]} Ne5 {[%emt 0:01:59]} 29. Bb5 {[%emt 0:01:05]} Bxa6 {[%emt 0:00:13]} 30. Bxa6 {[%emt 0:00:03]} Rxg2 {[%emt 0:08:24]} 31. Be2 {[%emt 0:03:06]} Rg1 {[%emt 0:02:05]} 32. a5 {[%emt 0:04:09]} Ra1 {[%emt 0:01:52]} 33. a6 {[%emt 0:01:45]} Kg7 {[%emt 0:02:54]} 34. Rc8 {[%emt 0:04:51]} Kf6 {[%emt 0:03:21]} 35. Rd8 {[%emt 0:05:14]} Ra3+ {[%emt 0:02:51]} 36. Kf2 {[%emt 0:00:39]} Ke7 {[%emt 0:01:26]} 37. Rh8 {[%emt 0:00:22]} d5 {[%emt 0:10:05]} 38. exd5 {[%emt 0:02:03]} exd5 {[%emt 0:00:08]} 39. h4 {[%emt 0:01:39]} d4 {[%emt 0:04:26]} 40. hxg5 {[%emt 0:01:16]} d3 {[%emt 0:00:25]} 41. Bd1 {[%emt 0:01:31]} Rxa6 {[%emt 0:00:52]} 42. Rxh7 {[%emt 0:00:02]} Ra1 {[%emt 0:02:19]} 43. f4 {[%emt 0:00:56]} Rxd1 {[%emt 0:02:17]} 44. fxe5 {[%emt 0:00:02]} Rg1 {[%emt 0:00:15]} 45. Ke3 {[%emt 0:01:16]} Rxg5 {[%emt 0:00:32]} 46. Kxd3 {[%emt 0:00:19]} Rxe5 {[%emt 0:00:03]} 47. Kd4 {[%emt 0:00:09]} Re1 {[%emt 0:00:07]} 48. Rh6 {[%emt 0:00:03]} Kf8 {[%emt 0:00:47]} 49. Rh2 {[%emt 0:00:09]} Kg7 {[%emt 0:00:11]} 50. Rg2+ {[%emt 0:00:01]} Kf6 {[%emt 0:00:02]} 51. Kd5 {[%emt 0:00:16]} Re5+ {[%emt 0:00:24]} 52. Kd4 {[%emt 0:00:02]} Ke6 {[%emt 0:00:21]} 53. Rg4 {[%emt 0:00:30]} Kf5 {[%emt 0:00:07]} 54. Rg1 {[%emt 0:00:04]} Re4+ {[%emt 0:00:18]} 55. Kd3 {[%emt 0:00:16]} Re7 {[%emt 0:01:19]} 56. Rf1+ {[%emt 0:00:07]} Kg4 {[%emt 0:00:03]} 57. Rg1+ {[%emt 0:00:03]} Kf3 {[%emt 0:00:12]} 58. Rf1+ {[%emt 0:00:02]} Kg2 {[%emt 0:00:04]} 59. Rf6 {[%emt 0:00:01]} Kg3 {[%emt 0:00:01]} 60. Rf1 {[%emt 0:00:12]} Kg4 {[%emt 0:00:02]} 61. Rg1+ {[%emt 0:00:02]} Kf5 {[%emt 0:00:01]} 62. Rf1+ {[%emt 0:00:00]} Kg6 {[%emt 0:00:01]} 63. Rg1+ {[%emt 0:00:04]} Kf6 {[%emt 0:00:01]} 64. Rf1+ {[%emt 0:00:01]} Kg7 {[%emt 0:00:02]} 65. Rg1+ {[%emt 0:00:01]} Kf8 {[%emt 0:00:01]} 66. Rf1 {[%emt 0:00:32]} Re6 {[%emt 0:00:02]} 67. Kd4 {[%emt 0:00:23]} f6 {[%emt 0:00:10]} 68. Rf4 {[%emt 0:00:18]} Kf7 {[%emt 0:00:05]} 69. Re4 {[%emt 0:00:21]} Ra6 {[%emt 0:00:02]} 70. Ke3 {[%emt 0:00:22]} Kg6 {[%emt 0:00:01]} 71. Kf4 {[%emt 0:00:02]} Ra5 {[%emt 0:00:09]} 72. Rb4 {[%emt 0:00:08]} Rh5 {[%emt 0:00:02]} 73. Kg3 {[%emt 0:00:13]} Rg5+ {[%emt 0:00:08]} 74. Kf4 {[%emt 0:00:06]} Rh5 {[%emt 0:00:13]} 75. Kg3 {[%emt 0:00:09]} Ra5 {[%emt 0:00:02]} 76. Kf4 {[%emt 0:00:03]} Rf5+ {[%emt 0:00:12]} 77. Kg3 {[%emt 0:00:05]} Kg5 {[%emt 0:00:12]} 78. Rg4+ {[%emt 0:00:02]} Kh5 {[%emt 0:00:01]} 79. Rh4+ {[%emt 0:00:01]} Kg6 {[%emt 0:00:02]} 80. Rb4 {[%emt 0:00:02]} Rf1 {[%emt 0:00:06]} 81. Kg2 {[%emt 0:00:26]} Re1 {[%emt 0:00:08]} 82. Kf2 {[%emt 0:00:10]} Re5 {[%emt 0:00:10]} 83. Kf3 {[%emt 0:00:05]} Kf5 {[%emt 0:00:07]} 84. Rf4+ {[%emt 0:00:02]} Kg6 {[%emt 0:00:18]} 85. Rb4 {[%emt 0:00:01]} Re1 {[%emt 0:00:06]} 86. Kf2 {[%emt 0:00:03]} Ra1 {[%emt 0:00:20]} 87. Rb5 {[%emt 0:00:19]} Ra3 {[%emt 0:00:03]} 88. Rc5 {[%emt 0:00:09]} Rh3 {[%emt 0:00:05]} 89. Kg2 {[%emt 0:00:02]} Ra3 {[%emt 0:00:17]} 90. Kf2 {[%emt 0:00:04]} f5 {[%emt 0:00:02]} 91. Rc6+ {[%emt 0:00:16]} Kh5 {[%emt 0:00:03]} 92. Rc4 {[%emt 0:00:07]} Kg5 {[%emt 0:00:02]} 93. Rb4 {[%emt 0:00:05]} Rh3 {[%emt 0:00:04]} 94. Kg2 {[%emt 0:00:01]} Rd3 {[%emt 0:00:13]} 95. Kf2 {[%emt 0:00:08]} Kf6 {[%emt 0:00:02]} 96. Ke2 {[%emt 0:00:09]} Rc3 {[%emt 0:00:10]} 97. Kf2 {[%emt 0:00:21]} Ke5 {[%emt 0:00:06]} 98. Rb5+ {[%emt 0:00:05]} Kf4 {[%emt 0:00:07]} 99. Rb4+ {[%emt 0:00:01]} Kg5 {[%emt 0:00:02]} 100. Ra4 {[%emt 0:00:05]} Rd3 {[%emt 0:00:05]} 101. Ke2 {[%emt 0:00:06]} Rg3 {[%emt 0:00:03]} 102. Kf2 {[%emt 0:00:03]} Rg4 {[%emt 0:00:03]} 103. Rxg4+ {[%emt 0:00:57]} Kxg4 {[%emt 0:00:02]} 104. Kg2 {[%emt 0:00:01]} Kf4 {[%emt 0:00:03]} 105. Kf2 {[%emt 0:00:00]} Ke4 {[%emt 0:00:01]} 106. Ke2 {[%emt 0:00:01]} f4 {[%emt 0:00:11]} 107. Kf2 {[%emt 0:00:01]} f3 {[%emt 0:00:02]} 108. Kf1 {[%emt 0:00:02]} Kf4 {[%emt 0:00:02]} 109. Kf2 {[%emt 0:00:01]} Kg4 {[%emt 0:00:01]} 110. Kf1 {[%emt 0:00:01]} Kg3 {[%emt 0:00:11]} 111. Kg1 {[%emt 0:00:02]} Kh3 {[%emt 0:00:02]} 112. Kf2 {[%emt 0:00:02]} Kg4 {[%emt 0:00:02]} 113. Kf1 {[%emt 0:00:01]} Kf4 {[%emt 0:00:02]} 114. Kf2 {[%emt 0:00:01]} Ke4 {[%emt 0:00:01]} 115. Kf1 {[%emt 0:00:01]} Ke3 {[%emt 0:00:04]} 116. Ke1 {[%emt 0:00:01]} Ke4 {[%emt 0:00:17]} 117. Kf2 {[%emt 0:00:02]} Kf4 {[%emt 0:00:02]} 118. Kf1 {[%emt 0:00:01]} Kg4 {[%emt 0:00:03]} 119. Kf2 {[%emt 0:00:01]} Kf4 {[%emt 0:00:01]} 120. Kf1 {[%emt 0:00:01]} Kg3 {[%emt 0:00:02]} 121. Kg1 {[%emt 0:00:01]} f2+ {[%emt 0:00:02]} 122. Kf1 {[%emt 0:00:02]} Kf3 {[%emt 0:00:02]} 1/2-1/2

[Event "46th OKU-A 2019"]
[Site "Utrecht"]
[Date "2019.06.01"]
[Round "2.7"]
[White "Lalic, Bogdan"]
[Black "Veltkamp, Gerben"]
[Result "1-0"]
[ECO "A58"]
[WhiteElo "2400"]
[BlackElo "2104"]
[Annotator "ChessBase"]
[PlyCount "65"]
[EventDate "2019.05.31"]
[EventType "swiss"]
[EventCountry "NED"]
[SourceTitle "playchess.com"]
[Source "ChessBase"]
[SourceQuality "1"]
[TimeControl "6600+10"]

1. d4 {[%emt 0:00:00]} Nf6 {[%emt 0:00:16]} 2. c4 {[%emt 0:00:03]} c5 {[%emt 0:00:06]} 3. d5 {[%emt 0:00:07]} b5 {[%emt 0:00:06]} 4. cxb5 {[%emt 0:00:11]} a6 {[%emt 0:00:06]} 5. bxa6 {[%emt 0:00:12]} g6 {[%emt 0:00:24]} 6. Nc3 {[%emt 0:00:12]} Bg7 {[%emt 0:00:12]} 7. a7 {[%emt 0:00:16]} Rxa7 {[%emt 0:03:55]} 8. e4 {[%emt 0:00:10]} O-O {[%emt 0:03:01]} 9. Nf3 {[%emt 0:00:06]} Ba6 {[%emt 0:05:05]} 10. Bxa6 {[%emt 0:00:36]} Nxa6 {[%emt 0:00:39]} 11. O-O {[%emt 0:00:09]} Qa8 {[%emt 0:03:29]} 12. e5 {[%emt 0:01:10]} Ng4 {[%emt 0:02:44]} 13. Re1 {[%emt 0:00:36]} e6 {[%emt 0:05:23]} 14. h3 {[%emt 0:02:04]} Nh6 {[%emt 0:01:24]} 15. Nb5 {[%emt 0:01:58]} Rb7 {[%emt 0:06:31]} 16. Nd6 {[%emt 0:00:07]} Rb6 {[%emt 0:01:10]} 17. dxe6 {[%emt 0:02:36]} fxe6 {[%emt 0:03:22]} 18. Ne4 {[%emt 0:02:10]} Kh8 {[%emt 0:19:45]} 19. Qxd7 {[%emt 0:02:26]} Rd8 {[%emt 0:05:20]} 20. Qa4 {[%emt 0:00:40]} Nf5 {[%emt 0:08:18]} 21. Bg5 {[%emt 0:02:03]} Nb4 {[%emt 0:05:53]} 22. Qxa8 {[%emt 0:01:11]} Rxa8 {[%emt 0:00:03]} 23. Re2 {[%emt 0:01:56]} Nd3 {[%emt 0:02:16]} 24. Bf6 {[%emt 0:00:41]} Rb4 {[%emt 0:05:20]} 25. Rd1 {[%emt 0:04:31]} Nxb2 {[%emt 0:05:47]} 26. Rd7 {[%emt 0:00:11]} Na4 {[%emt 0:06:52]} 27. g4 {[%emt 0:02:48]} Nb6 {[%emt 0:02:07]} 28. Rb7 {[%emt 0:00:15]} Nd5 {[%emt 0:06:24]} 29. Rxb4 {[%emt 0:00:18]} cxb4 {[%emt 0:00:02]} 30. gxf5 {[%emt 0:00:10]} gxf5 {[%emt 0:00:18]} 31. Nc5 {[%emt 0:00:44]} Nf4 {[%emt 0:01:05]} 32. Rd2 {[%emt 0:00:11]} Rg8 {[%emt 0:03:48]} 33. Kh2 {[%emt 0:00:36]} 1-0

[Event "46th OKU-A 2019"]
[Site "Utrecht"]
[Date "2019.06.01"]
[Round "2.8"]
[White "Sekandar, Kambiz"]
[Black "Van Overdam, Julian"]
[Result "0-1"]
[ECO "B08"]
[WhiteElo "2193"]
[BlackElo "2371"]
[Annotator "ChessBase"]
[PlyCount "48"]
[EventDate "2019.05.31"]
[EventType "swiss"]
[EventCountry "NED"]
[SourceTitle "playchess.com"]
[Source "ChessBase"]
[SourceQuality "1"]
[TimeControl "6600+10"]

1. e4 {[%emt 0:00:00]} d6 {[%emt 0:00:20]} 2. d4 {[%emt 0:00:00]} Nf6 {[%emt 0:00:09]} 3. Nc3 {[%emt 0:00:00]} g6 {[%emt 0:00:06]} 4. Nf3 {[%emt 0:00:07]} Bg7 {[%emt 0:00:26]} 5. Be2 {[%emt 0:00:10]} O-O {[%emt 0:00:12]} 6. O-O {[%emt 0:01:06]} Nc6 {[%emt 0:01:44]} 7. h3 {[%emt 0:02:32]} e5 {[%emt 0:00:06]} 8. dxe5 {[%emt 0:00:38]} dxe5 {[%emt 0:01:09]} 9. Bg5 {[%emt 0:01:02]} Be6 {[%emt 0:02:45]} 10. Nd5 {[%emt 0:01:43]} Bxd5 {[%emt 0:02:53]} 11. Bxf6 {[%emt 0:01:04]} Bxf6 {[%emt 0:08:01]} 12. exd5 {[%emt 0:02:53]} Ne7 {[%emt 0:02:32]} 13. c4 {[%emt 0:01:27]} Bg7 {[%emt 0:08:41]} 14. Qc2 {[%emt 0:07:58]} c6 {[%emt 0:01:56]} 15. Rad1 {[%emt 0:05:27]} cxd5 {[%emt 0:00:07]} 16. cxd5 {[%emt 0:00:07]} Nf5 {[%emt 0:01:45]} 17. d6 {[%emt 0:05:51]} Qb6 {[%emt 0:12:14]} 18. Rd5 {[%emt 0:04:32]} Rac8 {[%emt 0:11:18]} 19. Qb1 {[%emt 0:04:32]} e4 {[%emt 0:10:53]} 20. d7 {[%emt 0:06:42]} Rcd8 {[%emt 0:01:19]} 21. Rb5 {[%emt 0:05:51]} Qe6 {[%emt 0:06:30]} 22. Ng5 {[%emt 0:02:12]} Qe7 {[%emt 0:00:26]} 23. Qxe4 {[%emt 0:00:59]} Qxg5 {[%emt 0:00:14]} 24. g4 {[%emt 0:01:13]} Nd6 {[%emt 0:00:30]} 0-1

[Event "46th OKU-A 2019"]
[Site "Utrecht"]
[Date "2019.06.01"]
[Round "2.9"]
[White "De Jong, Tom"]
[Black "Haast, Mark"]
[Result "1-0"]
[ECO "A42"]
[WhiteElo "2143"]
[BlackElo "2391"]
[Annotator "ChessBase"]
[PlyCount "77"]
[EventDate "2019.05.31"]
[EventType "swiss"]
[EventCountry "NED"]
[SourceTitle "playchess.com"]
[Source "ChessBase"]
[SourceQuality "1"]
[TimeControl "6600+10"]

1. e4 {[%emt 0:00:00]} g6 {[%emt 0:02:10]} 2. d4 {[%emt 0:00:00]} d6 {[%emt 0:00:17]} 3. c4 {[%emt 0:00:43]} Bg7 {[%emt 0:00:29]} 4. Nc3 {[%emt 0:00:10]} e5 {[%emt 0:00:32]} 5. Nge2 {[%emt 0:04:15]} Nc6 {[%emt 0:05:36]} 6. d5 {[%emt 0:04:30]} Nce7 {[%emt 0:00:30]} 7. Ng3 {[%emt 0:03:08]} h5 {[%emt 0:07:21]} 8. h4 {[%emt 0:05:14]} Bh6 {[%emt 0:04:37]} 9. Bd3 {[%emt 0:02:02]} Bxc1 {[%emt 0:12:32]} 10. Qxc1 {[%emt 0:05:25]} Nf6 {[%emt 0:01:35]} 11. Qd2 {[%emt 0:06:40]} Neg8 {[%emt 0:06:57]} 12. O-O-O {[%emt 0:02:16]} Qe7 {[%emt 0:01:34]} 13. Kb1 {[%emt 0:00:48]} Bd7 {[%emt 0:01:04]} 14. f3 {[%emt 0:09:55]} O-O-O {[%emt 0:02:33]} 15. Rc1 {[%emt 0:02:14]} Kb8 {[%emt 0:01:08]} 16. Nf1 {[%emt 0:04:32]} Ne8 {[%emt 0:04:19]} 17. Ne3 {[%emt 0:00:36]} Ng7 {[%emt 0:02:47]} 18. g3 {[%emt 0:07:28]} f5 {[%emt 0:02:46]} 19. Nb5 {[%emt 0:06:44]} fxe4 {[%emt 0:26:52]} 20. fxe4 {[%emt 0:03:37]} Bxb5 {[%emt 0:14:51]} 21. cxb5 {[%emt 0:06:28]} Qd7 {[%emt 0:00:06]} 22. Rc3 {[%emt 0:02:47]} Ne8 {[%emt 0:00:32]} 23. Ra3 {[%emt 0:00:34]} Ne7 {[%emt 0:01:59]} 24. Rf1 {[%emt 0:04:48]} Nc8 {[%emt 0:00:19]} 25. Nc2 {[%emt 0:02:31]} Qe7 {[%emt 0:02:01]} 26. Nb4 {[%emt 0:01:08]} Nf6 {[%emt 0:02:09]} 27. Nc6+ {[%emt 0:02:30]} bxc6 {[%emt 0:00:07]} 28. bxc6 {[%emt 0:00:02]} Nd7 {[%emt 0:00:24]} 29. cxd7 {[%emt 0:04:44]} Qxd7 {[%emt 0:00:07]} 30. Qb4+ {[%emt 0:03:15]} Nb6 {[%emt 0:00:11]} 31. Bb5 {[%emt 0:01:52]} c5 {[%emt 0:00:17]} 32. dxc6 {[%emt 0:00:50]} Qe7 {[%emt 0:00:37]} 33. Raf3 {[%emt 0:01:13]} Rhf8 {[%emt 0:00:10]} 34. a4 {[%emt 0:00:17]} Rxf3 {[%emt 0:00:55]} 35. Rxf3 {[%emt 0:00:05]} a5 {[%emt 0:03:01]} 36. Qxa5 {[%emt 0:01:21]} Na8 {[%emt 0:01:03]} 37. Rf7 {[%emt 0:01:48]} Qxf7 {[%emt 0:00:14]} 38. Qxd8+ {[%emt 0:00:06]} Ka7 {[%emt 0:00:05]} 39. Qd7+ {[%emt 0:00:17]} 1-0

[Event "46th OKU-A 2019"]
[Site "Utrecht"]
[Date "2019.06.01"]
[Round "2.10"]
[White "Ootes, Lars"]
[Black "Konnen, Timo"]
[Result "1-0"]
[ECO "A22"]
[WhiteElo "2360"]
[BlackElo "1872"]
[Annotator "ChessBase"]
[PlyCount "63"]
[EventDate "2019.05.31"]
[EventType "swiss"]
[EventCountry "NED"]
[SourceTitle "playchess.com"]
[Source "ChessBase"]
[SourceQuality "1"]
[TimeControl "6600+10"]

1. c4 {[%emt 0:00:00]} e5 {[%emt 0:00:37]} 2. Nc3 {[%emt 0:00:01]} Nf6 {[%emt 0:00:42]} 3. Nf3 {[%emt 0:00:37]} e4 {[%emt 0:00:48]} 4. Ng5 {[%emt 0:01:58]} b5 {[%emt 0:01:02]} 5. e3 {[%emt 0:13:09]} bxc4 {[%emt 0:05:56]} 6. Qa4 {[%emt 0:02:01]} c6 {[%emt 0:03:53]} 7. Ngxe4 {[%emt 0:01:33]} Nxe4 {[%emt 0:04:17]} 8. Nxe4 {[%emt 0:00:08]} d5 {[%emt 0:01:24]} 9. Ng3 {[%emt 0:02:38]} Bd6 {[%emt 0:07:21]} 10. d3 {[%emt 0:15:32]} cxd3 {[%emt 0:02:58]} 11. Bxd3 {[%emt 0:00:27]} O-O {[%emt 0:02:48]} 12. Bd2 {[%emt 0:01:32]} Be5 {[%emt 0:04:39]} 13. Qc2 {[%emt 0:04:39]} Qh4 {[%emt 0:04:58]} 14. O-O {[%emt 0:10:36]} a5 {[%emt 0:07:16]} 15. f4 {[%emt 0:03:36]} Bf6 {[%emt 0:03:57]} 16. Rf3 {[%emt 0:16:09]} g6 {[%emt 0:04:30]} 17. Nf5 {[%emt 0:16:32]} Bxf5 {[%emt 0:04:52]} 18. Bxf5 {[%emt 0:00:35]} Bg7 {[%emt 0:03:26]} 19. Bd3 {[%emt 0:03:27]} f5 {[%emt 0:05:24]} 20. Rc1 {[%emt 0:01:15]} Rc8 {[%emt 0:06:19]} 21. Qc5 {[%emt 0:01:29]} Bf8 {[%emt 0:03:00]} 22. Qb6 {[%emt 0:03:29]} Nd7 {[%emt 0:03:07]} 23. Qb7 {[%emt 0:02:40]} Nc5 {[%emt 0:01:34]} 24. Rxc5 {[%emt 0:00:12]} Bxc5 {[%emt 0:01:42]} 25. Bxf5 {[%emt 0:02:53]} gxf5 {[%emt 0:07:42]} 26. Rg3+ {[%emt 0:00:07]} Qxg3 {[%emt 0:00:30]} 27. hxg3 {[%emt 0:00:04]} d4 {[%emt 0:01:50]} 28. Qb3+ {[%emt 0:00:54]} Kg7 {[%emt 0:01:21]} 29. Qe6 {[%emt 0:02:34]} Re8 {[%emt 0:03:56]} 30. Qxf5 {[%emt 0:01:57]} Bb4 {[%emt 0:03:32]} 31. Bxb4 {[%emt 0:00:12]} axb4 {[%emt 0:00:09]} 32. Qd7+ {[%emt 0:00:12]} 1-0

[Event "46th OKU-A 2019"]
[Site "Utrecht"]
[Date "2019.06.01"]
[Round "2.11"]
[White "Ghebreab, Elnathan"]
[Black "Okkes, Menno"]
[Result "0-1"]
[ECO "B23"]
[WhiteElo "1853"]
[BlackElo "2320"]
[Annotator "ChessBase"]
[PlyCount "64"]
[EventDate "2019.05.31"]
[EventType "swiss"]
[EventCountry "NED"]
[SourceTitle "playchess.com"]
[Source "ChessBase"]
[SourceQuality "1"]
[TimeControl "6600+10"]

1. e4 {[%emt 0:00:00]} c5 {[%emt 0:00:00]} 2. Nc3 {[%emt 0:00:43]} Nc6 {[%emt 0:00:10]} 3. f4 {[%emt 0:00:44]} g6 {[%emt 0:00:08]} 4. Nf3 {[%emt 0:00:05]} Bg7 {[%emt 0:00:10]} 5. Bc4 {[%emt 0:00:27]} e6 {[%emt 0:00:17]} 6. O-O {[%emt 0:03:04]} Nge7 {[%emt 0:00:08]} 7. Qe1 {[%emt 0:04:29]} O-O {[%emt 0:02:01]} 8. d3 {[%emt 0:01:00]} Nd4 {[%emt 0:09:41]} 9. Bb3 {[%emt 0:10:16]} d6 {[%emt 0:05:27]} 10. Be3 {[%emt 0:14:01]} Nec6 {[%emt 0:02:33]} 11. Qf2 {[%emt 0:23:13]} b6 {[%emt 0:13:04]} 12. Ba4 {[%emt 0:31:46]} Nxf3+ {[%emt 0:07:58]} 13. Qxf3 {[%emt 0:00:36]} Nd4 {[%emt 0:00:08]} 14. Qf2 {[%emt 0:05:41]} Bb7 {[%emt 0:05:52]} 15. Rab1 {[%emt 0:02:11]} a6 {[%emt 0:06:27]} 16. Ne2 {[%emt 0:00:48]} Nxe2+ {[%emt 0:00:14]} 17. Qxe2 {[%emt 0:00:03]} d5 {[%emt 0:00:13]} 18. b4 {[%emt 0:04:07]} cxb4 {[%emt 0:02:24]} 19. Rxb4 {[%emt 0:02:34]} b5 {[%emt 0:00:15]} 20. Bc5 {[%emt 0:04:07]} Qc7 {[%emt 0:06:44]} 21. Bxf8 {[%emt 0:03:21]} Bxf8 {[%emt 0:00:12]} 22. Rb2 {[%emt 0:00:11]} bxa4 {[%emt 0:00:10]} 23. Rfb1 {[%emt 0:00:12]} Bc6 {[%emt 0:00:21]} 24. f5 {[%emt 0:00:10]} dxe4 {[%emt 0:01:57]} 25. fxe6 {[%emt 0:00:06]} fxe6 {[%emt 0:00:43]} 26. Kh1 {[%emt 0:00:05]} Qe5 {[%emt 0:01:35]} 27. dxe4 {[%emt 0:00:16]} Bd6 {[%emt 0:00:48]} 28. g3 {[%emt 0:00:12]} Bxe4+ {[%emt 0:00:53]} 29. Kg1 {[%emt 0:00:02]} Bc5+ {[%emt 0:00:35]} 30. Kf1 {[%emt 0:00:01]} Rf8+ {[%emt 0:00:21]} 31. Ke1 {[%emt 0:00:01]} Qc3+ {[%emt 0:00:21]} 32. Qd2 {[%emt 0:00:20]} Rf1+ {[%emt 0:01:29]} 0-1

[Event "46th OKU-A 2019"]
[Site "Utrecht"]
[Date "2019.06.01"]
[Round "2.12"]
[White "Diepeveen, Vincent"]
[Black "De Zoeten, Cato"]
[Result "1/2-1/2"]
[ECO "B27"]
[WhiteElo "2312"]
[BlackElo "1634"]
[Annotator "ChessBase"]
[PlyCount "41"]
[EventDate "2019.05.31"]
[EventType "swiss"]
[EventCountry "NED"]
[SourceTitle "playchess.com"]
[Source "ChessBase"]
[SourceQuality "1"]
[TimeControl "6600+10"]

1. e4 {[%emt 0:00:00]} c5 {[%emt 0:00:00]} 2. Nf3 {[%emt 0:00:10]} g6 {[%emt 0:00:11]} 3. d4 {[%emt 0:00:03]} cxd4 {[%emt 0:00:05]} 4. Qxd4 {[%emt 0:00:04]} Nf6 {[%emt 0:00:08]} 5. e5 {[%emt 0:02:42]} Nc6 {[%emt 0:00:08]} 6. Qa4 {[%emt 0:00:43]} Nd5 {[%emt 0:00:19]} 7. h4 {[%emt 0:09:12]} h5 {[%emt 0:07:37]} 8. Bd3 {[%emt 0:09:58]} Bg7 {[%emt 0:09:08]} 9. O-O {[%emt 0:09:14]} Ndb4 {[%emt 0:10:39]} 10. Re1 {[%emt 0:08:48]} O-O {[%emt 0:05:04]} 11. Be4 {[%emt 0:09:27]} Qa5 {[%emt 0:11:05]} 12. Qxa5 {[%emt 0:04:26]} Nxa5 {[%emt 0:00:09]} 13. Bg5 {[%emt 0:09:11]} d5 {[%emt 0:09:01]} 14. exd6 {[%emt 0:08:49]} exd6 {[%emt 0:05:25]} 15. c3 {[%emt 0:04:58]} d5 {[%emt 0:08:50]} 16. cxb4 {[%emt 0:00:40]} dxe4 {[%emt 0:00:31]} 17. Nc3 {[%emt 0:01:56]} exf3 {[%emt 0:02:14]} 18. bxa5 {[%emt 0:00:09]} fxg2 {[%emt 0:00:54]} 19. Re7 {[%emt 0:00:26]} Be6 {[%emt 0:06:45]} 20. Rxb7 {[%emt 0:01:02]} Rfb8 {[%emt 0:00:48]} 21. a6 {[%emt 0:12:52]} 1/2-1/2